fUST/lending_fUST_20240424
["ID","MTS","AMOUNT","RATE_DAILY","PERIOD"]
[323359159,1713916242511,-151.0,0.00018239,2]
[323359160,1713916242520,-250.709325,0.00018239,2]
[323359161,1713916242529,-250.709325,0.00018239,2]
[323359162,1713916242538,-250.709325,0.00018239,2]
[323359163,1713916242547,-250.709333,0.00018239,2]
[323359164,1713916242556,-1147.317073,0.00018239,2]
[323359165,1713916242565,-1147.317073,0.00018239,2]
[323359166,1713916242574,-1147.317073,0.00018239,2]
[323359168,1713916242583,-1147.31707284,0.00018239,2]
[323359170,1713916242592,-217.535624,0.00018239,2]
[323359172,1713916242601,-217.535624,0.00018239,2]
[323359174,1713916242610,-217.535624,0.00018239,2]
[323359176,1713916242618,-217.535626,0.00018239,2]
[323359178,1713916242627,-1048.606736,0.00018239,2]
[323359180,1713916242636,-1048.606746,0.00018239,2]
[323359182,1713916242644,-219.565655,0.00018239,2]
[323359184,1713916242653,-219.565655,0.00018239,2]
[323359186,1713916242662,-219.565655,0.00018239,2]
[323359188,1713916242671,-219.565646,0.00018239,2]
[323359189,1713916242679,-155.13452116,0.0001824,2]
[323359191,1713916242688,-301.01360913,0.00018241,2]
[323359193,1713916242697,-151.0,0.00018241,2]
[323359195,1713916242706,-151.0,0.00018241,2]
[323359197,1713916242715,-895.611907,0.00018241,2]
[323359199,1713916242723,-531.893123,0.00018241,2]
[323359201,1713916242732,-531.893123,0.00018241,2]
[323359203,1713916242741,-895.611907,0.00018241,2]
[323359204,1713916242750,-151.0,0.00018241,2]
[323359205,1713916242758,-151.0,0.00018242,2]
[323359207,1713916242767,-151.0,0.00018242,2]
[323359209,1713916242776,-151.0,0.00018242,2]
[323359210,1713916242785,-151.0,0.00018242,2]
[323359211,1713916242794,-151.0,0.00018242,2]
[323359212,1713916242803,-151.0,0.00018242,2]
[323359213,1713916242812,-241.530269,0.00018242,2]
[323359214,1713916242820,-241.530269,0.00018242,2]
[323359215,1713916242829,-151.0,0.00018242,2]
[323359216,1713916242838,-895.611907,0.00018242,2]
[323359217,1713916242846,-895.611907,0.00018242,2]
[323359218,1713916242855,-531.893123,0.00018242,2]
[323359219,1713916242864,-531.893123,0.00018242,2]
[323359220,1713916242872,-531.893123,0.00018242,2]
[323359221,1713916242881,-531.893128,0.00018242,2]
[323359222,1713916242889,-895.611907,0.00018242,2]
[323359223,1713916242899,-895.61191,0.00018242,2]
[323359224,1713916242913,-151.0,0.00018242,2]
[323359225,1713916242923,-151.0,0.00018242,2]
[323359226,1713916242932,-520.08012379,0.000183,5]
[323359227,1713916242943,-262.8031148,0.00018327,2]
[323359229,1713916242953,-153.0,0.00018327,2]
[323359231,1713916242963,-153.0,0.00018327,2]
[323359233,1713916242974,-153.0,0.00018327,2]
[323359234,1713916242984,-1152.0,0.00018334,2]
[323359235,1713916242995,-1676.83616858,0.00018337,2]
[323359236,1713916243004,-808.46399951,0.00018337,2]
[323359237,1713916243013,-156.3,0.00018337,2]
[323359239,1713916243021,-265.26449715,0.00018337,7]
[323359241,1713916243030,-199.44026217,0.00018337,2]
[323359242,1713916243040,-329.62886819,0.00018337,2]
[323359243,1713916243051,-183.3259991,0.00018337,2]
[323359244,1713916243060,-151.0,0.00018337,2]
[323359245,1713916243068,-151.0,0.00018337,2]
[323359246,1713916243077,-241.530269,0.00018337,2]
[323359247,1713916243086,-241.530269,0.00018337,2]
[323359248,1713916243095,-151.0,0.00018337,2]
[323359249,1713916243104,-996.6077191,0.00018338,2]
[323359250,1713916243113,-151.0,0.00018339,2]
[323359251,1713916243124,-220.004673,0.00018339,2]
[323359252,1713916243133,-220.004673,0.00018339,2]
[323359254,1713916243142,-151.0,0.00018339,2]
[323359256,1713916243151,-151.0,0.00018339,2]
[323359257,1713916243168,-467.58359331,0.0001834,2]
[323359258,1713916243178,-154.86065942,0.0001834,2]
[323359259,1713916243187,-151.0,0.0001834,2]
[323359260,1713916243196,-151.0,0.0001834,2]
[323359261,1713916243204,-151.0,0.0001834,2]
[323359262,1713916243213,-226.063593,0.0001834,2]
[323359263,1713916243222,-220.004673,0.0001834,2]
[323359264,1713916243230,-220.004673,0.0001834,2]
[323359265,1713916243239,-151.0,0.0001834,2]
[323359266,1713916243248,-151.0,0.0001834,2]
[323359267,1713916243257,-155.124668,0.0001834,2]
[323359268,1713916243266,-151.0,0.0001834,2]
[323359269,1713916243275,-151.0,0.0001834,2]
[323359270,1713916243284,-222.326872,0.0001834,2]
[323359271,1713916243293,-241.530269,0.0001834,2]
[323359273,1713916243302,-241.530269,0.0001834,2]
[323359274,1713916243311,-241.530269,0.0001834,2]
[323359275,1713916243319,-241.530269,0.0001834,2]
[323359276,1713916243328,-151.0,0.0001834,2]
[323359277,1713916243337,-151.0,0.0001834,2]
[323359278,1713916243345,-177.55154333,0.00018341,2]
[323359279,1713916243354,-173.27891215,0.00018341,2]
[323359281,1713916243363,-151.0,0.00018341,2]
[323359282,1713916243371,-151.0,0.00018341,2]
[323359283,1713916243380,-151.0,0.00018341,2]
[323359284,1713916243389,-220.004673,0.00018341,2]
[323359285,1713916243397,-220.004673,0.00018341,2]
[323359286,1713916243411,-151.0,0.00018341,2]
[323359287,1713916243420,-151.0,0.00018341,2]
[323359288,1713916243429,-151.0,0.00018341,2]
[323359289,1713916243438,-241.530269,0.00018341,2]
[323359290,1713916243447,-241.530269,0.00018341,2]
[323359291,1713916243456,-151.0,0.00018341,2]
[323359292,1713916243465,-151.0,0.00018343,2]
[323359293,1713916243474,-220.004673,0.00018343,2]
[323359294,1713916243484,-220.004673,0.00018343,2]
[323359295,1713916243493,-151.0,0.00018343,2]
[323359296,1713916243503,-151.0,0.00018343,2]
[323359297,1713916243512,-151.0,0.00018343,2]
[323359298,1713916243521,-151.0,0.00018343,2]
[323359299,1713916243530,-151.0,0.00018343,2]
[323359300,1713916243539,-241.530269,0.00018343,2]
[323359301,1713916243548,-241.530269,0.00018343,2]
[323359302,1713916243556,-241.530269,0.00018343,2]
[323359303,1713916243565,-241.530274,0.00018343,2]
[323359304,1713916243573,-255.710454,0.00018343,2]
[323359305,1713916243582,-257.679471,0.00018348,2]
[323359306,1713916243591,-151.0,0.00018348,2]
[323359307,1713916243600,-151.0,0.00018348,2]
[323359308,1713916243608,-151.0,0.00018348,2]
[323359309,1713916243617,-151.0,0.00018348,2]
[323359310,1713916243626,-153.562624,0.00018348,2]
[323359311,1713916243635,-220.004673,0.00018348,2]
[323359312,1713916243643,-220.004673,0.00018348,2]
[323359313,1713916243653,-220.004673,0.00018348,2]
[323359314,1713916243663,-220.004673,0.00018348,2]
[323359315,1713916243672,-220.004673,0.00018348,2]
[323359316,1713916243680,-220.004673,0.00018348,2]
[323359317,1713916243689,-220.004673,0.00018348,2]
[323359318,1713916243698,-220.004673,0.00018348,2]
[323359319,1713916243707,-151.0,0.00018348,2]
[323359320,1713916243715,-151.0,0.00018348,2]
[323359321,1713916243724,-222.062496,0.00018348,2]
[323359322,1713916243733,-151.0,0.00018348,2]
[323359323,1713916243742,-153.29062607,0.00018575,2]
[323359324,1713916243751,-620.17034285,0.00018783,2]
[323359325,1713916243760,-417.0,0.00018896,2]
[323359326,1713916243769,-221.693,0.00018896,2]
[323359327,1713916243778,-6940.55264008,0.000189,2]
[323359328,1713916243787,-151.0,0.0001891,2]
[323359329,1713916243796,-220.004673,0.0001891,2]
[323359330,1713916243805,-220.004673,0.0001891,2]
[323359331,1713916243815,-220.004673,0.0001891,2]
[323359332,1713916243824,-220.004671,0.0001891,2]
[323359333,1713916243832,-153.0,0.0001891,2]
[323359334,1713916243841,-411.3285172,0.0001891,2]
[323359335,1713916243850,-189.19295912,0.0001897,2]
[323359336,1713916243858,-637.9252794,0.00019,2]
[323359337,1713916243867,-5000.0,0.00019,2]
[323359338,1713916243876,-200.0,0.00019,2]
[323359339,1713916243885,-154.81422293,0.00019,2]
[323359340,1713916243893,-154.81422293,0.00019,2]
[323359341,1713916243905,-154.81422293,0.00019,2]
[323359342,1713916243914,-185.80866985,0.00019069,2]
[323359343,1713916243922,-205.12969013,0.00019069,2]
[323359344,1713916243931,-154.82968734,0.00019075,2]
[323359345,1713916243940,-154.82968734,0.00019075,2]
[323359346,1713916243949,-154.82968734,0.00019075,2]
[323359347,1713916243958,-154.82968734,0.00019075,2]
[323359348,1713916243966,-154.82968734,0.00019075,2]
[323359349,1713916243975,-154.82968734,0.00019075,2]
[323359350,1713916243984,-154.82968734,0.00019075,2]
[323359351,1713916243993,-154.82968734,0.00019075,2]
[323359352,1713916244003,-154.82968734,0.00019075,2]
[323359353,1713916244011,-154.82968734,0.00019075,2]
[323359354,1713916244020,-154.82968734,0.00019075,2]
[323359355,1713916244029,-151.0,0.00019075,2]
[323359356,1713916244042,-300.0,0.000191,2]
[323359357,1713916244052,-153.0,0.00019122,2]
[323359358,1713916244061,-744.67731568,0.00019176,2]
[323359359,1713916244069,-500.0,0.00019178,2]
[323359360,1713916244078,-500.0,0.00019178,2]
[323359361,1713916244087,-500.0,0.00019178,2]
[323359362,1713916244096,-500.0,0.00019178,2]
[323359363,1713916244105,-500.0,0.00019178,2]
[323359364,1713916244113,-500.0,0.00019178,2]
[323359365,1713916244123,-500.0,0.00019178,2]
[323359366,1713916244132,-500.0,0.00019178,2]
[323359367,1713916244140,-546.90595198,0.00019178,2]
[323359368,1713916244149,-541.15470908,0.00019178,2]
[323359369,1713916244160,-500.0,0.00019178,2]
[323359370,1713916244169,-500.0,0.00019178,2]
[323359371,1713916244178,-500.0,0.00019178,2]
[323359372,1713916244187,-500.0,0.00019178,2]
[323359373,1713916244196,-500.0,0.00019178,2]
[323359374,1713916244204,-553.52659239,0.00019178,2]
[323359375,1713916244213,-457.40852823,0.00019178,2]
[323359376,1713916244222,-500.0,0.00019178,2]
[323359377,1713916244231,-500.0,0.00019178,2]
[323359378,1713916244240,-500.0,0.00019178,2]
[323359379,1713916244249,-325.51920138,0.00019178,2]
[323359380,1713916244257,-251.20798367,0.00019178,2]
[323359381,1713916244266,-500.0,0.00019178,2]
[323359382,1713916244274,-471.37161794,0.00019178,2]
[323359383,1713916244283,-500.0,0.00019178,2]
[323359384,1713916244292,-500.0,0.00019178,2]
[323359385,1713916244301,-500.0,0.00019178,2]
[323359386,1713916244309,-500.0,0.00019178,2]
[323359387,1713916244318,-500.0,0.00019178,2]
[323359388,1713916244326,-500.0,0.00019178,2]
[323359389,1713916244335,-500.0,0.00019178,2]
[323359390,1713916244344,-500.0,0.00019178,2]
[323359391,1713916244353,-500.0,0.00019178,2]
[323359392,1713916244362,-503.77124223,0.00019178,2]
[323359393,1713916244371,-500.0,0.00019178,2]
[323359394,1713916244379,-500.0,0.00019178,2]
[323359395,1713916244388,-500.0,0.00019178,2]
[323359396,1713916244397,-500.0,0.00019178,2]
[323359397,1713916244407,-412.73686097,0.00019178,2]
[323359398,1713916244417,-500.0,0.00019178,2]
[323359399,1713916244426,-500.0,0.00019178,2]
[323359400,1713916244435,-500.0,0.00019178,2]
[323359401,1713916244444,-500.0,0.00019178,2]
[323359402,1713916244453,-500.0,0.00019178,2]
[323359403,1713916244461,-255.39879862,0.00019178,2]
[323359404,1713916244470,-300.10057165,0.00019178,2]
[323359405,1713916244479,-500.0,0.00019178,2]
[323359406,1713916244488,-500.0,0.00019178,2]
[323359407,1713916244496,-195.44877316,0.00019178,2]
[323359408,1713916244505,-500.0,0.00019178,2]
[323359409,1713916244623,-608.17727611,0.00019178,2]
[323359410,1713916244633,-337.45954281,0.00019178,2]
[323359411,1713916244642,-500.0,0.00019178,2]
[323359412,1713916244651,-265.84844893,0.00019178,2]
[323359413,1713916244661,-500.0,0.00019178,2]
[323359414,1713916244670,-500.0,0.00019178,2]
[323359415,1713916244679,-151.0,0.00019178,2]
[323359416,1713916244688,-296.069753,0.00019178,2]
[323359417,1713916244697,-500.0,0.00019178,2]
[323359418,1713916244705,-500.74986126,0.00019178,2]
[323359419,1713916244714,-500.0,0.00019178,2]
[323359420,1713916244723,-500.0,0.00019178,2]
[323359421,1713916244732,-500.0,0.00019178,2]
[323359422,1713916244740,-500.0,0.00019178,2]
[323359423,1713916244749,-500.0,0.00019178,2]
[323359424,1713916244758,-500.0,0.00019178,2]
[323359425,1713916244767,-500.0,0.00019178,2]
[323359426,1713916244776,-507.17171376,0.00019178,2]
[323359427,1713916244785,-501.68120795,0.00019178,2]
[323359428,1713916244794,-500.0,0.00019178,2]
[323359429,1713916244803,-569.99446454,0.00019178,2]
[323359430,1713916244811,-500.0,0.00019178,2]
[323359431,1713916244820,-500.0,0.00019178,2]
[323359432,1713916244829,-500.0,0.00019178,2]
[323359433,1713916244838,-500.0,0.00019178,2]
[323359434,1713916244846,-500.0,0.00019178,2]
[323359435,1713916244855,-500.0,0.00019178,2]
[323359436,1713916244864,-500.0,0.00019178,2]
[323359437,1713916244873,-500.0,0.00019178,2]
[323359438,1713916244882,-500.0,0.00019178,2]
[323359439,1713916244891,-1382.43,0.00019178,2]
[323359440,1713916244901,-500.0,0.00019178,2]
[323359441,1713916244911,-500.0,0.00019178,2]
[323359442,1713916244920,-500.0,0.00019178,2]
[323359443,1713916244929,-500.0,0.00019178,2]
[323359444,1713916244938,-500.0,0.00019178,2]
[323359445,1713916244947,-500.0,0.00019178,2]
[323359446,1713916244955,-500.0,0.00019178,2]
[323359447,1713916244964,-423.90741455,0.00019178,2]
[323359448,1713916244973,-500.0,0.00019178,2]
[323359449,1713916244982,-784.34,0.00019178,2]
[323359450,1713916244991,-500.0,0.00019178,2]
[323359451,1713916245000,-500.0,0.00019178,2]
[323359452,1713916245009,-500.0,0.00019178,2]
[323359453,1713916245018,-527.20962089,0.00019178,2]
[323359454,1713916245027,-500.0,0.00019178,2]
[323359455,1713916245036,-500.0,0.00019178,2]
[323359456,1713916245049,-500.0,0.00019178,2]
[323359457,1713916245058,-500.0,0.00019178,2]
[323359458,1713916245067,-500.0,0.00019178,2]
[323359459,1713916245075,-267.04824333,0.00019178,2]
[323359460,1713916245085,-500.0,0.00019178,2]
[323359461,1713916245094,-500.0,0.00019178,2]
[323359462,1713916245103,-176.7973073,0.00019178,2]
[323359463,1713916245111,-500.0,0.00019178,2]
[323359464,1713916245120,-500.0,0.00019178,2]
[323359465,1713916245130,-500.0,0.00019178,2]
[323359466,1713916245138,-500.0,0.00019178,2]
[323359467,1713916245147,-500.0,0.00019178,2]
[323359468,1713916245157,-500.0,0.00019178,2]
[323359469,1713916245166,-500.0,0.00019178,2]
[323359470,1713916245175,-623.46711665,0.00019178,2]
[323359471,1713916245184,-500.0,0.00019178,2]
[323359472,1713916245193,-500.0,0.00019178,2]
[323359473,1713916245202,-500.0,0.00019178,2]
[323359474,1713916245211,-500.0,0.00019178,2]
[323359475,1713916245220,-158.82858055,0.00019178,2]
[323359476,1713916245229,-500.0,0.00019178,2]
[323359477,1713916245238,-500.0,0.00019178,2]
[323359478,1713916245247,-500.0,0.00019178,2]
[323359479,1713916245255,-500.0,0.00019178,2]
[323359480,1713916245264,-500.0,0.00019178,2]
[323359481,1713916245273,-500.0,0.00019178,2]
[323359482,1713916245282,-500.0,0.00019178,2]
[323359483,1713916245291,-500.0,0.00019178,2]
[323359484,1713916245300,-500.0,0.00019178,2]
[323359485,1713916245309,-593.05,0.00019178,2]
[323359486,1713916245318,-500.0,0.00019178,2]
[323359487,1713916245328,-500.0,0.00019178,2]
[323359488,1713916245337,-391.6400216,0.00019178,2]
[323359489,1713916245346,-500.0,0.00019178,2]
[323359490,1713916245355,-500.0,0.00019178,2]
[323359491,1713916245364,-500.0,0.00019178,2]
[323359492,1713916245374,-500.0,0.00019178,2]
[323359493,1713916245383,-504.78648204,0.00019178,2]
[323359494,1713916245392,-500.0,0.00019178,2]
[323359495,1713916245401,-500.0,0.00019178,2]
[323359496,1713916245412,-852.42,0.00019178,2]
[323359497,1713916245421,-609.50589766,0.00019178,2]
[323359498,1713916245430,-500.0,0.00019178,2]
[323359499,1713916245439,-576.8,0.00019178,2]
[323359500,1713916245448,-500.0,0.00019178,2]
[323359501,1713916245457,-544.60344,0.00019178,2]
[323359502,1713916245466,-500.0,0.00019178,2]
[323359503,1713916245475,-500.0,0.00019178,2]
[323359504,1713916245484,-2342.36,0.00019178,2]
[323359505,1713916245493,-500.0,0.00019178,2]
[323359506,1713916245503,-500.0,0.00019178,2]
[323359507,1713916245511,-1683.81,0.00019178,2]
[323359508,1713916245520,-500.0,0.00019178,2]
[323359509,1713916245529,-2206.35,0.00019178,2]
[323359510,1713916245538,-500.0,0.00019178,2]
[323359511,1713916245547,-500.0,0.00019178,2]
[323359512,1713916245560,-500.0,0.00019178,2]
[323359513,1713916245576,-387.84950899,0.00019178,2]
[323359516,1713916245590,-151.0,0.00019178,2]
[323359517,1713916245602,-500.0,0.00019178,2]
[323359518,1713916245616,-723.04,0.00019178,2]
[323359519,1713916245631,-228.59812908,0.00019178,2]
[323359520,1713916245644,-500.0,0.00019178,2]
[323359521,1713916245660,-500.0,0.00019178,2]
[323359522,1713916245672,-500.0,0.00019178,2]
[323359523,1713916245686,-500.0,0.00019178,2]
[323359525,1713916245698,-500.0,0.00019178,2]
[323359526,1713916245711,-500.0,0.00019178,2]
[323359527,1713916245725,-500.0,0.00019178,2]
[323359528,1713916245737,-500.0,0.00019178,2]
[323359529,1713916245752,-500.0,0.00019178,2]
[323359530,1713916245767,-500.0,0.00019178,2]
[323359531,1713916245780,-500.0,0.00019178,2]
[323359532,1713916245793,-500.0,0.00019178,2]
[323359533,1713916245807,-500.0,0.00019178,2]
[323359534,1713916245822,-500.0,0.00019178,2]
[323359535,1713916245838,-500.0,0.00019178,2]
[323359536,1713916245851,-500.0,0.00019178,2]
[323359537,1713916245862,-500.0,0.00019178,2]
[323359538,1713916245873,-500.0,0.00019178,2]
[323359539,1713916245887,-338.59205646,0.00019178,2]
[323359540,1713916245900,-501.9183311,0.00019178,2]
[323359542,1713916245914,-500.0,0.00019178,2]
[323359543,1713916245926,-500.0,0.00019178,2]
[323359544,1713916245937,-500.0,0.00019178,2]
[323359545,1713916245949,-437.4507695,0.00019178,2]
[323359546,1713916245961,-1084.31,0.00019178,2]
[323359547,1713916245973,-500.0,0.00019178,2]
[323359548,1713916245985,-500.0,0.00019178,2]
[323359549,1713916245997,-312.68615775,0.00019178,2]
[323359550,1713916246010,-500.0,0.00019178,2]
[323359551,1713916246022,-500.0,0.00019178,2]
[323359553,1713916246034,-500.0,0.00019178,2]
[323359555,1713916246047,-500.0,0.00019178,2]
[323359557,1713916246059,-500.0,0.00019178,2]
[323359559,1713916246071,-500.0,0.00019178,2]
[323359561,1713916246083,-180.88720274,0.00019178,2]
[323359563,1713916246095,-500.0,0.00019178,2]
[323359564,1713916246107,-500.0,0.00019178,2]
[323359565,1713916246120,-268.08554988,0.00019178,2]
[323359567,1713916246134,-500.0,0.00019178,2]
[323359568,1713916246145,-490.13024839,0.00019178,2]
[323359569,1713916246158,-768.74,0.00019178,2]
[323359570,1713916246170,-500.0,0.00019178,2]
[323359571,1713916246182,-500.16446698,0.00019178,2]
[323359572,1713916246195,-500.0,0.00019178,2]
[323359573,1713916246207,-500.0,0.00019178,2]
[323359574,1713916246219,-500.0,0.00019178,2]
[323359575,1713916246230,-500.0,0.00019178,2]
[323359577,1713916246242,-506.16169682,0.00019178,2]
[323359579,1713916246254,-500.0,0.00019178,2]
[323359581,1713916246265,-500.0,0.00019178,2]
[323359583,1713916246278,-500.0,0.00019178,2]
[323359585,1713916246290,-500.0,0.00019178,2]
[323359586,1713916246303,-500.0,0.00019178,2]
[323359587,1713916246315,-500.0,0.00019178,2]
[323359588,1713916246327,-500.0,0.00019178,2]
[323359589,1713916246339,-500.0,0.00019178,2]
[323359590,1713916246351,-500.0,0.00019178,2]
[323359591,1713916246363,-729.86,0.00019178,2]
[323359592,1713916246374,-1543.58,0.00019178,2]
[323359593,1713916246386,-508.80885748,0.00019178,2]
[323359594,1713916246398,-500.0,0.00019178,2]
[323359595,1713916246411,-509.45276576,0.00019178,2]
[323359596,1713916246423,-500.0,0.00019178,2]
[323359597,1713916246435,-1197.7,0.00019178,2]
[323359598,1713916246446,-500.0,0.00019178,2]
[323359599,1713916246459,-567.37810752,0.00019178,2]
[323359600,1713916246470,-500.0,0.00019178,2]
[323359601,1713916246482,-500.0,0.00019178,2]
[323359602,1713916246494,-500.0,0.00019178,2]
[323359603,1713916246506,-500.0,0.00019178,2]
[323359604,1713916246518,-520.29,0.00019178,2]
[323359605,1713916246529,-917.45,0.00019178,2]
[323359606,1713916246541,-500.0,0.00019178,2]
[323359607,1713916246553,-500.0,0.00019178,2]
[323359608,1713916246565,-500.0,0.00019178,2]
[323359609,1713916246576,-501.09993963,0.00019178,2]
[323359610,1713916246588,-500.0,0.00019178,2]
[323359611,1713916246600,-500.0,0.00019178,2]
[323359612,1713916246611,-500.0,0.00019178,2]
[323359613,1713916246623,-500.0,0.00019178,2]
[323359614,1713916246635,-500.0,0.00019178,2]
[323359615,1713916246647,-500.0,0.00019178,2]
[323359616,1713916246660,-500.0,0.00019178,2]
[323359617,1713916246672,-944.26,0.00019178,2]
[323359618,1713916246683,-500.0,0.00019178,2]
[323359619,1713916246695,-500.0,0.00019178,2]
[323359620,1713916246707,-501.48050601,0.00019178,2]
[323359621,1713916246719,-1747.92,0.00019178,2]
[323359622,1713916246731,-539.13972995,0.00019178,2]
[323359623,1713916246743,-500.0,0.00019178,2]
[323359624,1713916246753,-500.0,0.00019178,2]
[323359625,1713916246762,-500.0,0.00019178,2]
[323359626,1713916246771,-500.0,0.00019178,2]
[323359627,1713916246780,-557.81762977,0.00019178,2]
[323359628,1713916246789,-513.4026973,0.00019178,2]
[323359629,1713916246930,-500.0,0.00019178,2]
[323359630,1713916246993,-500.0,0.00019178,2]
[323359631,1713916247003,-674.48,0.00019178,2]
[323359632,1713916247012,-500.0,0.00019178,2]
[323359633,1713916247021,-500.0,0.00019178,2]
[323359634,1713916247030,-500.0,0.00019178,2]
[323359635,1713916247040,-500.10261825,0.00019178,2]
[323359636,1713916247052,-500.0,0.00019178,2]
[323359637,1713916247061,-500.0,0.00019178,2]
[323359638,1713916247070,-500.0,0.00019178,2]
[323359639,1713916247079,-500.0,0.00019178,2]
[323359640,1713916247089,-500.0,0.00019178,2]
[323359641,1713916247098,-500.0,0.00019178,2]
[323359642,1713916247107,-500.0,0.00019178,2]
[323359643,1713916247117,-500.0,0.00019178,2]
[323359644,1713916247126,-500.0,0.00019178,2]
[323359645,1713916247135,-300.05130895,0.00019178,2]
[323359646,1713916247143,-959.22,0.00019178,2]
[323359647,1713916247152,-500.0,0.00019178,2]
[323359648,1713916247163,-739.56,0.00019178,2]
[323359649,1713916247172,-502.5,0.00019178,2]
[323359650,1713916247181,-500.0,0.00019178,2]
[323359651,1713916247190,-500.0,0.00019178,2]
[323359652,1713916247199,-500.0,0.00019178,2]
[323359653,1713916247208,-505.67530964,0.00019178,2]
[323359654,1713916247218,-242.06974814,0.00019178,2]
[323359655,1713916247227,-2008.31,0.00019178,2]
[323359656,1713916247236,-500.0,0.00019178,2]
[323359657,1713916247246,-500.0,0.00019178,2]
[323359658,1713916247254,-500.0,0.00019178,2]
[323359659,1713916247264,-500.0,0.00019178,2]
[323359660,1713916247273,-524.08030379,0.00019178,2]
[323359661,1713916247282,-500.0,0.00019178,2]
[323359662,1713916247291,-483.94318884,0.00019178,2]
[323359663,1713916247300,-500.0,0.00019178,2]
[323359664,1713916247309,-500.0,0.00019178,2]
[323359665,1713916247318,-204.32888389,0.00019178,2]
[323359666,1713916247328,-621.36724693,0.00019178,2]
[323359667,1713916247337,-500.0,0.00019178,2]
[323359668,1713916247346,-500.0,0.00019178,2]
[323359669,1713916247354,-500.0,0.00019178,2]
[323359670,1713916247363,-1727.79,0.00019178,2]
[323359671,1713916247372,-500.0,0.00019178,2]
[323359672,1713916247381,-226.92168069,0.00019178,2]
[323359673,1713916247390,-500.0,0.00019178,2]
[323359674,1713916247398,-500.0,0.00019178,2]
[323359675,1713916247408,-646.74442247,0.00019178,2]
[323359676,1713916247417,-500.0,0.00019178,2]
[323359677,1713916247426,-155.6130199,0.00019178,2]
[323359678,1713916247435,-500.0,0.00019178,2]
[323359679,1713916247444,-1697.21,0.00019178,2]
[323359680,1713916247454,-500.0,0.00019178,2]
[323359681,1713916247463,-500.0,0.00019178,2]
[323359682,1713916247471,-500.0,0.00019178,2]
[323359683,1713916247480,-500.0,0.00019178,2]
[323359684,1713916247489,-500.0,0.00019178,2]
[323359685,1713916247498,-306.88466694,0.00019178,2]
[323359686,1713916247507,-500.0,0.00019178,2]
[323359687,1713916247516,-500.0,0.00019178,2]
[323359688,1713916247525,-500.0,0.00019178,2]
[323359689,1713916247534,-500.0,0.00019178,2]
[323359690,1713916247543,-200.05707191,0.00019178,2]
[323359691,1713916247552,-500.0,0.00019178,2]
[323359692,1713916247561,-600.45,0.00019178,2]
[323359693,1713916247570,-500.0,0.00019178,2]
[323359694,1713916247579,-500.0,0.00019178,2]
[323359695,1713916247588,-500.0,0.00019178,2]
[323359696,1713916247597,-500.0,0.00019178,2]
[323359697,1713916247607,-500.0,0.00019178,2]
[323359698,1713916247616,-500.0,0.00019178,2]
[323359699,1713916247625,-500.0,0.00019178,2]
[323359700,1713916247634,-500.0,0.00019178,2]
[323359701,1713916247643,-500.0,0.00019178,2]
[323359702,1713916247652,-500.0,0.00019178,2]
[323359703,1713916247663,-500.0,0.00019178,2]